Workbook

Sheet Menu
M2: Cyber Menu
T5: PRINT

Sheet What is it
B2: What is
B3: Cyber Coverage?
C5: Return to Menu
B6: Data Compromise
B8: Data Compromise Coverage helps small and medium sized businesses respond to the financial burden and service obligations of a data breach. Businesses and institutions have a responsibility to safeguard the data of clients, employees and others. Small and mid-sized companies are vulnerable to data breaches by computer hackers, thieves and dishonest employees, but data can also be lost through accidental or inadvertent release. Many businesses lack the resources to respond to a data breach effectively.
B10: Data Compromise coverage is designed to help small and mid-sized businesses investigate a data breach, notify individuals, and provide credit monitoring, case management and other services that help prevent identity theft and fraud following a breach of personal identifying information. It pays for the following types of expenses:
A12: 1. | B12: Legal review of notification obligations;
A13: 2. | B13: Help to find who was affected by the breach and how to notify them;
A14: 3. | B14: Preparation of notification letters;
A15: 4. | B15: Toll free help line;
A16: 5. | B16: Credit monitoring for affected persons;
A17: 6. | B17: Identity restoration case management for identity theft victims.
B19: In addition, an optional legal defense cost and liability coverage can be added as part of the program to protect businesses from lawsuits filed by consumers upset about a data breach when their private information is exposed.
B21: For more information, visit:
B22: https://www.munichre.com/HSB/data-breach-insurance/index.html
B24: Cyber One
B26: CyberOne™ coverage is a cyber risk insurance solution designed to help small businesses recover from damage to data and systems caused by a computer attack. This cyber threat protection also provides defense and liability coverage for third-party lawsuits alleging damage due to the insured inadequately securing its computer system.
B28: What is a computer attack?
B29: A computer attack, also known as a cyber attack – is defined as any of the following:
A31: 1. | B31: An unauthorized person gaining access to the insured’s computer system;
A32: 2. | B32: A virus or other malware attack;
A33: 3. | B33: A denial of service attack.
B35: What does cyber risk insurance cover?
B37: CyberOne™ coverage provides broad affordable cyber liability protection specially designed for small businesses to address the growing threat of information security exposures. This cyber liabilty insurance helps pay for the costs associated with computer restoration and data recovery. And, the coverage also protects against third party liabilities a business might have as a result of a failure of system security.
B39: In the event of a computer attack, CyberOne™ pays for:
A41: 1. | B41: Data Recovery from electronic sources
A42: 2. | B42: Data Recreation from nonelectronic sources
A43: 3. | B43: System Recovery (only if "Full" coverage is purchased)
A44: 4. | B44: Business Income (only if "Full" coverage is purchased)
A45: 5. | B45: Public Relations (only if "Full" coverage is purchased)
B47: Coverage for third party liability
B49: Third party coverage can be triggered by a “network security liability suit” — a civil proceeding, an alternative dispute resolution proceeding or a written demand for money alleging that a negligent failure of the insured’s computer security allowed one of the following to occur:
A51: 1. | B51: A breach of third party business data
A52: 2. | B52: An unintended propagation of malware
A53: 3. | B53: A denial of service attack in which the insured unintentionally participated (only if "Full" coverage is purchased)
B55: In the event of a network security liability suit, CyberOne™ insurance covers costs of defense, settlement and judgment. Defense is provided within the coverage limits and third party coverage can be offered separately from the first party coverage.
B57: For more information, visit:
B58: https://www.munichre.com/HSB/cyber-insurance/index.html

Sheet Qualifications
B2: Qualifications
B5: Not eligible
B6: Financial Institutions, Adult business, Gambling or gaming, Credit Card or Financial Transaction posting, Hospitals, Credit reporting Agencies, Collection Agents, Information / Data brokerages, Municipalities, Schools, Colleges or Universities; | U6: Return to Menu
B7: Risk with "unknown occupancies";
B8: Risks without a supporting commercial policy.
B10: Refer
B11: Risks over $50,000 in premium or $10,000,000 in gross receipts.
B13: Data Compromise Questions | Q13: =IF(S27="Yes","$1,000,000",IF(S23="Yes","$250,000",IF(S18="Yes","$100,000","$50,000"))) -> $50,000
B14: The following questions must be answered for data compromise where the limit applied for is $100,000 and over. The higher the limit requested, the more questions are required to be answered.
B15: =IF(Q18="No",CONCATENATE("You qualify for a ",Q13," limit unless you answer the questions below."),CONCATENATE("You qualify for a ",Q13," limit, based on your answers.")) -> You qualify for a $50,000 limit unless you answer the questions below.
E16: YES | G16: NO | J16: YES | K16: No | M16: Qualify Yes = 1 | O16: Answered Yes = 1 | Q16: Answered section 1? | S16: Passed section 1
B17: Has your organization suffered a breach of personal information in the last 12 months? | C17: =IF(M17+O17=1,"Fail",+L17) -> ! | J17: FALSE | K17: FALSE | L17: =IF(J17=K17,"!"," ") -> ! | M17: =IF(K17=TRUE,IF(J17=TRUE,0,1),0) -> 0 | O17: =IF(J17=TRUE,1,IF(K17=TRUE,1,0)) -> 0
B18: Is there a posted document retention / destruction policy in place? | C18: =IF(M18+O18=1,"Fail",+L18) -> ! | J18: FALSE | K18: FALSE | L18: =IF(J18=K18,"!"," ") -> ! | M18: =IF(J18=TRUE,IF(K18=TRUE,0,1),0) -> 0 | O18: =IF(J18=TRUE,1,IF(K18=TRUE,1,0)) -> 0 | Q18: =IF(SUM(O17:O19)=3,"Yes","No") -> No | S18: =IF(Q18="Yes",IF(SUM(M17:M19)=3,"Yes","No"),"No") -> No
B19: Do you conduct background screens for prospective employees? | C19: ! | J19: FALSE | K19: FALSE | L19: ! | M19: =IF(J19=TRUE,IF(K19=TRUE,0,1),0) -> 0 | O19: 0
B21: Data Compromise questions, if limit requested is $250,000 or over | E21: YES | G21: NO | Q21: Answered section 2? | S21: Passed section 2
B22: Do you maintain regularly updated computer security measures, e.g. firewall, virus protection, secured wireless connectivity? | C22: =IF(M22+O22=1,"Fail",+L22) -> ! | J22: FALSE | K22: FALSE | L22: =IF(J22=K22,"!"," ") -> ! | M22: 0 | O22: 0
B23: Are your employee, customer and other physical records maintained in a secure environment with limited access? | C23: ! | J23: FALSE | K23: FALSE | L23: =IF(J23=K23,"!"," ") -> ! | M23: 0 | O23: 0 | Q23: =IF(SUM(O22:O23)=2,"Yes","No") -> No | S23: =IF(S18="No","No",IF(Q23="Yes",IF(SUM(M22:M23)=2,"Yes","No"),"No")) -> No
B25: Data Compromise questions, if limit requested is $500,000 or over | E25: YES | G25: NO | Q25: Answered section 3? | S25: Passed section 3
B26: Is access to personal information restricted by job description? | C26: =IF(M26+O26=1,"Fail",+L26) -> ! | J26: FALSE | K26: FALSE | L26: =IF(J26=K26,"!"," ") -> ! | M26: 0 | O26: 0
B27: Is their a Chief Information &/or Chief Security Officer (or equivalent)? | C27: ! | J27: FALSE | K27: FALSE | L27: =IF(J27=K27,"!"," ") -> ! | M27: 0 | O27: 0 | Q27: =IF(SUM(O26:O30)=5,"Yes","No") -> No | S27: =IF(S23="No","No",IF(Q27="Yes",IF(SUM(M26:M30)=5,"Yes","No"),"No")) -> No
B28: Do you have a comprehensive information Security and Privacy Policy? | C28: ! | J28: FALSE | K28: FALSE | L28: =IF(J28=K28,"!"," ") -> ! | M28: 0 | O28: 0
B29: Are all users issued unique IDs and passwords when connecting to or accessing the internal network? | C29: ! | J29: FALSE | K29: FALSE | L29: ! | M29: 0 | O29: 0
B30: Do you provide regular security training/information to all people who have access to personally identifying information, whether in paper or electronic format? | C30: ! | J30: FALSE | K30: FALSE | L30: ! | M30: 0 | O30: 0
B38: Return to Menu
AK202: FALSE | AL202: FALSE
AK203: FALSE | AL203: FALSE
AL204: FALSE
AL209: TRUE
AL215: FALSE
AK216: TRUE

Sheet Coverage
M1: Coverage Details
C3: Data Compromise | AA3: Return to Menu
C5: Coverage choice | R5: Limit | U5: Deductible
B6: =IF(C6=Rates!B5,"!","") ->  | C6: Response Expense Coverage and Optional Defense and Liability | Q6: =IF(Rates!G4=0,"",IF(Coverage!R6=Rates!B18,"!","")) ->  | R6: 1000000 | U6: =IF(Rates!G4=0,"",IF(Coverage!V6=Rates!B11,"!","")) ->  | V6: 10000
D7: =IF(Rates!G4=0,"","IT Forensics Sublimit") -> IT Forensics Sublimit | R7: =IF(Rates!G$4=0,"",IF(R$6=Rates!B$18,"",0.1*R$6)) -> 100000
D8: =IF(Rates!G4=0,"","Legal Sublimit") -> Legal Sublimit | R8: =IF(Rates!G$4=0,"",IF(R$6=Rates!B$18,"",0.1*R$6)) -> 100000 | U8: Premium
D9: =IF(Rates!G4=0,"","Public Relations Sublimit") -> Public Relations Sublimit | R9: =IF(Rates!G$4=0,"",IF(R$6=Rates!B$18,"",0.1*R$6)) -> 100000 | V9: =+Rates!L30 -> 0
D10: =IF(Rates!N33="Yes",CONCATENATE("You only qualify for a ",Qualifications!Q13," limit. Choose another limit."),IF(C6=Rates!B7,"You have not chosen Defense and Liability coverage!",IF(Rates!N32="Yes","You have entered a Deductible or Limit but it is inconsistent with your chosen coverage.",""))) -> You only qualify for a $50,000 limit. Choose another limit.
C12: CyberOne | I12: Choose First Party option (1.) and then Third Party option (2.)
C14: Coverage choice for First Party Computer Attack | R14: Limit | U14: Deductible
A15: 1. | B15: =IF(Rates!M54="Yes","!",IF(C15=Rates!B38,"!","")) ->  | C15: Full First Party Coverage | Q15: =IF(Rates!M52="Yes","!","") ->  | R15: 100000 | U15: =IF(Rates!M53="Yes","!","") ->  | V15: 5000
D16: =IF(Rates!F37=0,"",IF(Rates!$M55="Yes","","Data Restoration")) -> Data Restoration | R16: =IF(Rates!F$37=0,"",IF(Rates!$M55="Yes","","Included")) -> Included
D17: =IF(Rates!F37=0,"",IF(Rates!$M55="Yes","","Systems Restorations")) -> Systems Restorations | R17: =IF(Rates!F$37=0,"",IF(Rates!$M55="Yes","","Included")) -> Included | U17: Premium
D18: =IF(Rates!$M55="Yes","",IF(C$15=Rates!B$40,"Data Recreation Coverage not wanted",IF(C$15=Rates!B$41,"Data Recreation Coverage",""))) -> Data Recreation Coverage | R18: =IF(Rates!$M55="Yes","",IF(Coverage!R$15="Choose …","",IF(C$15=Rates!B$41,Coverage!R$15*0.05,""))) -> 5000 | V18: =+Rates!M46 -> 319
D19: =IF(Rates!$M55="Yes","",IF(C$15=Rates!B$40,"Loss of Business Coverage Coverage not wanted",IF(C$15=Rates!B$41,"Loss of Business Coverage Coverage",""))) -> Loss of Business Coverage Coverage | R19: =IF(Rates!$M55="Yes","",IF(Coverage!R$15="Choose …","",IF(C$15=Rates!B$41,Coverage!R$15*0.2,""))) -> 20000
D20: =IF(Rates!$M55="Yes","",IF(C$15=Rates!B$40,"Public Relations Coverage Coverage not wanted",IF(C$15=Rates!B$41,"Public Relations Coverage Coverage",""))) -> Public Relations Coverage Coverage | R20: =IF(Rates!$M55="Yes","",IF(Coverage!R$15="Choose …","",IF(C$15=Rates!B$41,Coverage!R$15*0.1,""))) -> 10000
D21: =IF(Rates!P49="Yes","ERROR - Check limits and Deductible options in dropdown",IF(Rates!P50="Yes","You have a limit or deductible amount, which is inconsistent with your coverage choice",IF(Rates!P51="Yes","ERROR - You must enter limit and/or Deductible amounts",IF(Rates!M56="Yes","ERROR - Both Options must be either Full or Limiited","")))) -> 
C23: Coverage choice for Third Party Network Security Liability | R23: Limit | U23: Deductible
A24: 2. | B24: =IF(Rates!Q56="Yes","!",IF(C24=Rates!B60,"!","")) ->  | C24: Full Third Party Coverage | R24: =IF(C24=Rates!B60,"n/a",IF(C24=Rates!B61,"n/a",R15)) -> 100000 | V24: =IF(C24=Rates!B60,"n/a",IF(C24=Rates!B61,"n/a",V15)) -> 5000
D25: =IF(R$24="n/a","","Malware Transmission") -> Malware Transmission | R25: =IF(D25="","","Included") -> Included
D26: =IF(R24="n/a","","Denial of Service") -> Denial of Service | R26: =IF(D26="","","Included") -> Included | U26: =IF(R24="n/a","","Premium") -> Premium
D27: =IF(R24="n/a","",IF(Rates!F59=1,"Third Party Business Information Coverage not wanted",IF(Rates!F59=2,"Third Party Business Information",""))) -> Third Party Business Information | R27: =IF(D27="","",IF(Rates!F59=1,"","Included")) -> Included | V27: =IF(R24="n/a","",+Rates!M70) -> 215
D28: =IF(Rates!M56="Yes","ERROR - Both Options must be either Full or Limiited.",IF(Rates!M57="Yes","You can't have third party coverage without purchasing first party coverage","")) -> 
A33: Return to Menu

Sheet Application
N1: Cyber Application
B4: Insured Name: | Z4: Return to Menu
B5: Broker:
B6: Attached to and form part of Policy #:
B7: Effective Date:
D9: I understand the insurance company relies on the acuracy and honesty of my answers to properly rate and underwrite this policy.
D10: =CONCATENATE("I filled out the qualification form and based on my responses to the answers, qualified for up to ",Qualifications!Q13, " of Data Compromise coverage.") -> I filled out the qualification form and based on my responses to the answers, qualified for up to $50,000 of Data Compromise coverage.
D11: The coverages have been explained to me in full and I have chosen the Options listed below and further described on the Coverage Details page.
D12: The consent and disclosure form signed by me for my commercial policy applies to this supplementary Cyber application.
M14: COVERAGES APPLIED FOR - SUMMARY
M15: (For full details of all coverages, refer to the Coverage Details Page)
B17: Data Compromise | P17: Limit | S17: Ded. | U17: Premium
B18: =Coverage!C6 -> Response Expense Coverage and Optional Defense and Liability | P18: =+Coverage!R6 -> 1000000 | S18: =+Coverage!V6 -> 10000 | U18: =+Rates!L30 -> 0 | AC18: =+Rates!L30 -> 0
B20: CyberOne
B21: =CONCATENATE("Computer Attack - ",+Coverage!C15) -> Computer Attack - Full First Party Coverage | P21: =+Coverage!R15 -> 100000 | S21: =+Coverage!V15 -> 5000 | U21: =+Coverage!V18 -> 319 | AC21: =+Rates!M46 -> 319
B22: =CONCATENATE("Network Security Liability - ",Coverage!C24) -> Network Security Liability - Full Third Party Coverage | P22: =+Coverage!R24 -> 100000 | S22: =+Coverage!V24 -> 5000 | U22: =+Coverage!V27 -> 215 | AC22: =+Rates!M70 -> 215
T24: TOTAL PREMIUM | U24: =SUM(AC18:AC22) -> 534
T25: Tax | U25: =0.08*U24 -> 42.72
T26: TOTAL | U26: =+U25+U24 -> 576.72
B29: Date | M29: Applicant name and signature
B32: Date | M32: Broker name and signature
J39: Return to Menu

Sheet Rates (hidden)
I1: Number of sections filled out: | M1: =IF(Qualifications!Q27="Yes",3,IF(Qualifications!Q23="Yes",2,IF(Qualifications!Q18="Yes",1,0))) -> 0
B2: Drop down menus | I2: Limit qualified for based on questionnaire: | M2: =IF(Qualifications!S27="Yes",1000000,IF(Qualifications!S23="Yes",250000,IF(Qualifications!S18="Yes",100000,50000))) -> 50000
G3: Chosen
B4: Data Compromise Options | G4: =SUM(G7:G8) -> 2 | J4: Deductible
B5: Choose … | I5: Limit | J5: =+B12 -> 1000 | K5: =+B13 -> 2500 | L5: =+B14 -> 5000 | M5: =+B15 -> 10000
B6: Does not want Data Compromise Coverage | I6: =+B19 -> 25000 | J6: 1 | K6: 0.995 | L6: 0.986 | M6: 0.967 | O6: =IF(J$13=I6,IF(M$13=J$5,J6,IF(M$13=K$5,K6,IF(M$13=L$5,L6,M6))),0) -> 0
B7: Response Expense Coverage only | G7: =IF(Coverage!C$6=Rates!B7,1,0) -> 0 | I7: =+B20 -> 50000 | J7: 1 | K7: 0.992 | L7: 0.978 | M7: 0.949 | O7: =IF(J$13=I7,IF(M$13=J$5,J7,IF(M$13=K$5,K7,IF(M$13=L$5,L7,M7))),0) -> 0
B8: Response Expense Coverage and Optional Defense and Liability | G8: =IF(Coverage!C$6=Rates!B8,2,0) -> 2 | I8: 100000 | J8: 1 | K8: 0.99 | L8: 0.975 | M8: 0.943 | O8: 0
I9: 250000 | J9: 1 | K9: 0.992 | L9: 0.98 | M9: 0.954 | O9: 0
B10: Data Compromise Deductible Options | I10: 500000 | J10: 1 | K10: 0.993 | L10: 0.982 | M10: 0.96 | O10: 0
B11: Choose … | I11: 1000000 | J11: 1 | K11: 0.993 | L11: 0.982 | M11: 0.96 | O11: 0.96
B12: 1000 | O12: =IF(M13="Choose …",0,SUM(O6:O11)) -> 0.96 | P12: Factor
B13: 2500 | I13: Limit | J13: =IF(G4=0,0,+Coverage!R6) -> 1000000 | L13: Ded. | M13: =IF(G4=0,0,+Coverage!V6) -> 10000
B14: 5000 | I14: Chosen | L14: Chosen
B15: 10000
B17: Data Compromise Limit | I17: Response Coverage only? | L17: =IF(B7=Coverage!C6,"Yes","No") -> No
B18: Choose …
B19: 25000 | I19: Limit | J19: Yes | K19: No | L19: Chosen | M19: Factor | O19: Chosen
B20: 50000 | I20: =+I6 -> 25000 | J20: 56 | K20: 79 | L20: =IF(J13=I20,IF(L17="Yes",J20,K20),0) -> 0 | M20: 0.688
B21: 100000 | I21: =+I7 -> 50000 | J21: 82 | K21: 114 | L21: =IF(J13="Choose …",0,IF(J13>I20,IF(L17="Yes",J21,K21),0)) -> 114 | M21: 1
B22: 250000 | I22: 100000 | M22: 1.528 | O22: =IF(J$13=I22,M22,0) -> 0
B23: 500000 | I23: 250000 | M23: 2.786 | O23: =IF(J$13=I23,M23,0) -> 0
B24: 1000000 | I24: 500000 | M24: 4.149 | O24: 0
I25: 1000000 | M25: 5.6 | O25: 5.6
K26: Base Premium | L26: =SUM(L20:L21) -> 114 | O26: =IF(SUM(O22:O25)>0,SUM(O22:O25),1) -> 5.6 | P26: Factor
K27: Factor | L27: =+O26 -> 5.6
K28: Final Base Premium | L28: =+L27*L26 -> 638.4
K29: Ded Factor | L29: =+O12 -> 0.96
K30: Net Premium | L30: =IF(N33="Yes",0,ROUND(+L28*L29,0)) -> 0
I32: Error when limit or deductible chosen but no coverage: | N32: =IF(G4=0,IF(J13>0,"Yes",IF(M13>0,"Yes","No")),"No") -> No
I33: Error based on limit chosen higher than insured qualifies for: | N33: =IF(J13>M2,"Yes","No") -> Yes
B35: Drop down menus | F35: 1st Party | K35: FIRST PARTY RATING
F36: Chosen | J36: Limited - Chosen = 1 | L36: Full - Chosen = 2
B37: First Party Cyber One | F37: =SUM(F38:F41) -> 2 | J37: Deductible | L37: Deductible
B38: Choose … | F38: =IF(B38=Coverage!C$15,3,0) -> 0 | I38: Limit | J38: 2500 | K38: 5000 | L38: 2500 | M38: 5000 | N38: 10000 | P38: Premium
B39: Does not want First Party Cyber One Coverage | F39: =IF(B39=Coverage!C$15,3,0) -> 0 | I39: 25000 | J39: 132 | K39: 62 | L39: n/a | M39: n/a | N39: n/a | P39: =IF(J46=1,IF(J43=I39,IF(M43=J38,J39,IF(M43=K38,K39,0)),0),0) -> 0
B40: Limited First Party Coverage | F40: =IF(B40=Coverage!C$15,1,0) -> 0 | I40: 50000 | J40: 134 | K40: 67 | L40: 144 | M40: 118 | N40: 97 | P40: =IF(J46=3,0,IF(J46=1,IF(J43=I40,IF(M43=J38,J40,IF(M43=K38,K40,0)),0),IF(J43=I40,IF(M43=L38,L40,IF(M43=M38,M40,IF(M43=N38,N40,0))),0))) -> 0
B41: Full First Party Coverage | F41: =IF(B41=Coverage!C$15,2,0) -> 2 | I41: 100000 | J41: n/a | K41: n/a | L41: n/a | M41: 319 | N41: 125 | P41: =IF(J46=3,0,IF(J46=2,IF(J43=I41,IF(M43=M38,M41,IF(M43=N38,N41,0)),0),0)) -> 319
B43: First Party Cyber One Deductible Options | I43: Limit | J43: =+Coverage!R15 -> 100000 | L43: Ded. | M43: =+Coverage!V15 -> 5000
B44: Choose … | I44: Chosen | L44: Chosen
B45: =IF(J43=100000,5000,2500) -> 5000
B46: =IF(J43=100000,10000,5000) -> 10000 | I46: Package | J46: =+F37 -> 2 | L46: Premium | M46: =IF(F37=0,0,SUM(P39:P41)) -> 319
B47: =IF(J43=100000,"",IF(F37=1,"",10000)) ->  | I47: Chosen | Q47: Coverage | R47: Limit | S47: Deductible
Q48: Trigger | R48: Trigger | S48: Trigger
B49: First Party Cyber One Limit | I49: Is there an Error with consistency between coverage and limits | P49: =IF(P51="Yes","No",IF(J46=3,"No",IF(J46>0,IF(M46=0,"Yes","No"),"No"))) -> No | Q49: =+P49 -> No | R49: =+Q49 -> No | S49: No
B50: Choose … | I50: Limit/deductible chosen and no coverage chosen? | P50: =IF(J46=0,IF(J43<>B50,"Yes",IF(M43<>B44,"Yes","No")),"No") -> No | Q50: =+P50 -> No | R50: =IF(P50="Yes",IF(J43=B50,"No","Yes"),"No") -> No | S50: =IF(P50="Yes",IF(M43=B44,"No","Yes"),"No") -> No
B51: =IF(F37=1,25000,50000) -> 50000 | I51: Must enter limits? | P51: =IF(J46=3,"No",IF(J46>0,IF(J43=B50,"Yes",IF(M43=B44,"Yes","No")),"No")) -> No | Q51: No | R51: =IF(P51="Yes",IF(J43=B50,"Yes","No"),"No") -> No | S51: =IF(P51="Yes",IF(M43=B44,"Yes","No"),"No") -> No
B52: =IF(F37=1,50000,100000) -> 100000 | I52: Trigger exclamation marks beside limit | M52: =IF(R49="Yes","Yes",IF(R50="Yes","Yes",IF(R51="Yes","Yes","No"))) -> No
I53: Trigger exclamation marks beside deductible | M53: =IF(S49="Yes","Yes",IF(S50="Yes","Yes",IF(S51="Yes","Yes","No"))) -> No
I54: Trigger exclamation marks beside coverage | M54: =IF(Q49="Yes","Yes",IF(Q50="Yes","Yes",IF(Q51="Yes","Yes",IF(Q56="Yes","Yes","No")))) -> No
I55: Overall error to hide detail under coverage | M55: =IF(M52="Yes","Yes",IF(M53="Yes","Yes",IF(M54="Yes","Yes","No"))) -> No
I56: Two options out of alignment (limited/full) | M56: =IF(F37=3,"No",IF(F37+F59=3,"Yes","No")) -> No | Q56: =+M56 -> No
B57: Drop down menus | I57: Chosen third party but no 1st party | M57: =IF(F37=3,IF(F59<>0,"Yes","No"),"No") -> No
F58: Chosen
B59: Third Party Network Security Liability | F59: =IF(B60=Coverage!C24,0,IF(Coverage!C24=Rates!B61,0,+Rates!F65+Rates!F66)) -> 2 | K59: THIRD PARTY RATING
B60: Choose … | J60: Limited - Chosen = 1 | L60: Full - Chosen = 2
B61: Does not want Third Party Cyber One Coverage | J61: Deductible | L61: Deductible
B62: =IF(F37=1,"Limited Third Party Coverage", IF(F37=2,"Full Third Party Coverage","")) -> Full Third Party Coverage | I62: Limit | J62: 2500 | K62: 5000 | L62: 2500 | M62: 5000 | N62: 10000 | P62: Premium
I63: 25000 | J63: 67 | K63: 61 | L63: n/a | M63: n/a | N63: n/a | P63: =IF(J70=1,IF(J67=I63,IF(M67=J62,J63,IF(M67=K62,K63,0)),0),0) -> 0
I64: 50000 | J64: 69 | K64: 65 | L64: 177 | M64: 146 | N64: 138 | P64: =IF(J70=1,IF(J67=I64,IF(M67=J62,J64,IF(M67=K62,K64,0)),0),IF(J67=I64,IF(M67=L62,L64,IF(M67=M62,M64,IF(M67=N62,N64,0))),0)) -> 0
B65: Limited Third Party Coverage | F65: =IF(B65=Coverage!C24,1,0) -> 0 | I65: 100000 | J65: n/a | K65: n/a | L65: n/a | M65: 215 | N65: 179 | P65: =IF(J70=2,IF(J67=I65,IF(M67=M62,M65,IF(M67=N62,N65,0)),0),0) -> 215
B66: Full Third Party Coverage | F66: =IF(B66=Coverage!C24,2,0) -> 2
I67: Limit | J67: =IF($J$70>0,J43,0) -> 100000 | L67: Ded. | M67: =IF($J$70>0,M43,0) -> 5000
I68: Chosen | L68: Chosen
I70: Package | J70: =+F59 -> 2 | L70: Premium | M70: =IF(J70>0,IF(M56="No",IF(M55="No",SUM(P63:P65),0),0),0) -> 215
I71: Chosen
